[Event "Early-Titled-Tuesday-Blitz-May-07-2024"]
[Site "Chess.com"]
[Date "2024.05.07"]
[Round "9"]
[White "RusPakhom"]
[Black "Darko-Dimitrijevic"]
[Result "1/2-1/2"]
[WhiteElo "2340"]
[BlackElo "2238"]
[TimeControl "180+1"]
[EndTime "9:52:07 PDT"]
[Termination "Game drawn - insufficient material"]

1. d4 {[%clk 0:03:00.9]} 1... g6 {[%clk 0:02:57.9]} 2. e4 {[%clk 0:03:00.4]}
2... Bg7 {[%clk 0:02:57.8]} 3. Nc3 {[%clk 0:03:01]} 3... b6 {[%clk 0:02:57.7]}
4. Nf3 {[%clk 0:02:59.5]} 4... Bb7 {[%clk 0:02:56.3]} 5. Bc4 {[%clk 0:02:59.5]}
5... e6 {[%clk 0:02:55.1]} 6. d5 {[%clk 0:02:40.5]} 6... e5 {[%clk 0:02:54.1]}
7. Bg5 {[%clk 0:02:27.8]} 7... f6 {[%clk 0:02:50.3]} 8. Be3 {[%clk 0:02:14.5]}
8... d6 {[%clk 0:02:49.5]} 9. h4 {[%clk 0:02:13.6]} 9... h5 {[%clk 0:02:47.4]}
10. Qd2 {[%clk 0:02:02.2]} 10... Nd7 {[%clk 0:02:46.1]} 11. O-O-O {[%clk
0:01:59.3]} 11... a6 {[%clk 0:02:45]} 12. Be2 {[%clk 0:01:46.2]} 12... Nc5
{[%clk 0:02:41.1]} 13. Rdg1 {[%clk 0:01:41.5]} 13... Nh6 {[%clk 0:02:39.4]} 14.
Ne1 {[%clk 0:01:32.1]} 14... b5 {[%clk 0:02:39.2]} 15. a3 {[%clk 0:01:29.6]}
15... f5 {[%clk 0:02:28.7]} 16. Bg5 {[%clk 0:01:26.4]} 16... Qd7 {[%clk
0:02:21.2]} 17. exf5 {[%clk 0:01:21.1]} 17... Nxf5 {[%clk 0:02:20.1]} 18. Nd3
{[%clk 0:01:15]} 18... Nd4 {[%clk 0:02:14.7]} 19. Nxc5 {[%clk 0:01:04.7]} 19...
dxc5 {[%clk 0:02:13.4]} 20. Bd3 {[%clk 0:00:56.8]} 20... Qd6 {[%clk 0:01:58.3]}
21. f4 {[%clk 0:00:33.8]} 21... c4 {[%clk 0:01:51.1]} 22. fxe5 {[%clk
0:00:33.4]} 22... Bxe5 {[%clk 0:01:50.1]} 23. Ne4 {[%clk 0:00:30.1]} 23... Qxd5
{[%clk 0:01:41.9]} 24. Nf6+ {[%clk 0:00:28.3]} 24... Bxf6 {[%clk 0:01:40.8]} 25.
Bxf6 {[%clk 0:00:26.9]} 25... O-O {[%clk 0:01:39.2]} 26. Bxd4 {[%clk 0:00:19.8]}
26... Qxd4 {[%clk 0:01:37.4]} 27. Bxg6 {[%clk 0:00:18.3]} 27... Qxd2+ {[%clk
0:01:36.2]} 28. Kxd2 {[%clk 0:00:19.2]} 28... Rad8+ {[%clk 0:01:34.5]} 29. Kc1
{[%clk 0:00:17]} 29... Rd5 {[%clk 0:01:30.6]} 30. Rd1 {[%clk 0:00:14]} 30... Kg7
{[%clk 0:01:27.8]} 31. Rxd5 {[%clk 0:00:12]} 31... Bxd5 {[%clk 0:01:27]} 32.
Bxh5 {[%clk 0:00:12.4]} 32... Kh6 {[%clk 0:01:26.8]} 33. Bf3 {[%clk 0:00:08.8]}
33... Bxf3 {[%clk 0:01:26.5]} 34. gxf3 {[%clk 0:00:09.7]} 34... Rxf3 {[%clk
0:01:26]} 35. Kd2 {[%clk 0:00:08.3]} 35... c5 {[%clk 0:01:23.4]} 36. Ke2 {[%clk
0:00:06.6]} 36... Rg3 {[%clk 0:01:22.6]} 37. Kf2 {[%clk 0:00:05.4]} 37... Rg4
{[%clk 0:01:20.3]} 38. Kf3 {[%clk 0:00:05.4]} 38... Rd4 {[%clk 0:01:19.1]} 39.
Rh2 {[%clk 0:00:03.1]} 39... b4 {[%clk 0:01:18.8]} 40. axb4 {[%clk 0:00:02.7]}
40... cxb4 {[%clk 0:01:18.5]} 41. Ke3 {[%clk 0:00:02.3]} 41... Rg4 {[%clk
0:01:17.3]} 42. c3 {[%clk 0:00:01.5]} 42... a5 {[%clk 0:01:12.8]} 43. cxb4
{[%clk 0:00:01.4]} 43... axb4 {[%clk 0:01:11.7]} 44. Kf3 {[%clk 0:00:01.9]}
44... Rd4 {[%clk 0:01:11]} 45. Ke3 {[%clk 0:00:01.8]} 45... Rd3+ {[%clk
0:01:11]} 46. Ke4 {[%clk 0:00:02]} 46... Rb3 {[%clk 0:01:09.5]} 47. Rc2 {[%clk
0:00:02]} 47... c3 {[%clk 0:01:06.1]} 48. bxc3 {[%clk 0:00:02.9]} 48... Rxc3
{[%clk 0:01:06]} 49. Rxc3 {[%clk 0:00:03.3]} 49... bxc3 {[%clk 0:01:06.1]} 50.
Kd3 {[%clk 0:00:04]} 50... c2 {[%clk 0:01:06.2]} 51. Kxc2 {[%clk 0:00:04.4]}
51... Kh5 {[%clk 0:01:06.6]} 52. Kd2 {[%clk 0:00:05]} 52... Kxh4 {[%clk
0:01:06.7]} 1/2-1/2

[Event "Early-Titled-Tuesday-Blitz-May-07-2024"]
[Site "Chess.com"]
[Date "2024.05.07"]
[Round "9"]
[White "DominguezOnYoutube"]
[Black "Grandelicious"]
[Result "1-0"]
[WhiteElo "2984"]
[BlackElo "2909"]
[TimeControl "180+1"]
[EndTime "9:52:08 PDT"]
[Termination "DominguezOnYoutube won by resignation"]

1. e4 {[%clk 0:03:00.9]} 1... c5 {[%clk 0:03:00.4]} 2. Nf3 {[%clk 0:03:00.6]}
2... e6 {[%clk 0:03:01.2]} 3. d4 {[%clk 0:03:00.6]} 3... cxd4 {[%clk 0:03:02.1]}
4. Nxd4 {[%clk 0:03:00.9]} 4... Nc6 {[%clk 0:03:02.9]} 5. Nc3 {[%clk 0:03:01.1]}
5... Qc7 {[%clk 0:03:03.5]} 6. Be2 {[%clk 0:03:00.3]} 6... Nf6 {[%clk
0:02:59.2]} 7. Ndb5 {[%clk 0:02:59.2]} 7... Qb8 {[%clk 0:02:58.5]} 8. f4 {[%clk
0:02:59.3]} 8... d6 {[%clk 0:02:54.1]} 9. Be3 {[%clk 0:02:57.9]} 9... a6 {[%clk
0:02:42]} 10. Nd4 {[%clk 0:02:57.3]} 10... Bd7 {[%clk 0:02:42.4]} 11. g4 {[%clk
0:02:46.4]} 11... Nxd4 {[%clk 0:02:31]} 12. Qxd4 {[%clk 0:02:44.5]} 12... Bc6
{[%clk 0:02:30.2]} 13. g5 {[%clk 0:02:41.9]} 13... Nd7 {[%clk 0:02:19]} 14.
O-O-O {[%clk 0:02:33.6]} 14... Qc7 {[%clk 0:02:18.9]} 15. Rhe1 {[%clk
0:02:17.4]} 15... Rc8 {[%clk 0:02:11]} 16. Kb1 {[%clk 0:02:13.9]} 16... e5
{[%clk 0:02:09.2]} 17. Qd2 {[%clk 0:02:08.9]} 17... exf4 {[%clk 0:01:51.1]} 18.
Bxf4 {[%clk 0:02:09.8]} 18... Ne5 {[%clk 0:01:51.8]} 19. Nd5 {[%clk 0:02:01.8]}
19... Bxd5 {[%clk 0:01:50.7]} 20. exd5 {[%clk 0:02:02.7]} 20... Rd8 {[%clk
0:01:40.5]} 21. h4 {[%clk 0:01:49.7]} 21... Be7 {[%clk 0:01:33.7]} 22. h5 {[%clk
0:01:49.4]} 22... O-O {[%clk 0:01:33.9]} 23. Bd3 {[%clk 0:01:29.9]} 23... f5
{[%clk 0:00:52.1]} 24. Rf1 {[%clk 0:01:11.8]} 24... Rde8 {[%clk 0:00:47.4]} 25.
Bxe5 {[%clk 0:01:10]} 25... dxe5 {[%clk 0:00:47.8]} 26. Bxf5 {[%clk 0:01:10.3]}
26... Bd6 {[%clk 0:00:46.1]} 27. Qd3 {[%clk 0:01:07.1]} 27... Kh8 {[%clk
0:00:21.3]} 28. Bxh7 {[%clk 0:00:47.8]} 28... Rf4 {[%clk 0:00:21.3]} 29. Be4
{[%clk 0:00:35.9]} 29... Qe7 {[%clk 0:00:20.5]} 30. h6 {[%clk 0:00:30.9]} 30...
gxh6 {[%clk 0:00:20.7]} 31. gxh6 {[%clk 0:00:30.2]} 31... Ref8 {[%clk
0:00:19.8]} 32. Rg1 {[%clk 0:00:28.9]} 32... Qh4 {[%clk 0:00:19.9]} 33. Rde1
{[%clk 0:00:25]} 33... Bc5 {[%clk 0:00:17.2]} 34. Rh1 {[%clk 0:00:23.7]} 34...
Qg5 {[%clk 0:00:17.1]} 35. a3 {[%clk 0:00:22.5]} 35... Bd6 {[%clk 0:00:17.2]}
36. Reg1 {[%clk 0:00:20.6]} 36... Qe7 {[%clk 0:00:17.3]} 37. Qg3 {[%clk
0:00:18.8]} 37... R4f7 {[%clk 0:00:12.4]} 38. Qg7+ {[%clk 0:00:15.7]} 1-0

[Event "Early-Titled-Tuesday-Blitz-May-07-2024"]
[Site "Chess.com"]
[Date "2024.05.07"]
[Round "9"]
[White "kacperkarwowski"]
[Black "Doublekk14"]
[Result "0-1"]
[WhiteElo "2496"]
[BlackElo "2363"]
[TimeControl "180+1"]
[EndTime "9:52:09 PDT"]
[Termination "Doublekk14 won on time"]

1. d4 {[%clk 0:02:56]} 1... Nf6 {[%clk 0:02:59.4]} 2. Bg5 {[%clk 0:02:55.5]}
2... Ne4 {[%clk 0:02:58.5]} 3. Bf4 {[%clk 0:02:48.1]} 3... d5 {[%clk 0:02:58.8]}
4. f3 {[%clk 0:02:36.6]} 4... Nf6 {[%clk 0:02:54.7]} 5. e3 {[%clk 0:02:35.4]}
5... e6 {[%clk 0:02:54.8]} 6. Bd3 {[%clk 0:02:34.6]} 6... Bd6 {[%clk 0:02:54.3]}
7. Ne2 {[%clk 0:02:34.4]} 7... c5 {[%clk 0:02:51.4]} 8. c3 {[%clk 0:02:34]} 8...
Nc6 {[%clk 0:02:50.6]} 9. Nd2 {[%clk 0:02:28.3]} 9... cxd4 {[%clk 0:02:43]} 10.
cxd4 {[%clk 0:02:26]} 10... Bxf4 {[%clk 0:02:40.7]} 11. Nxf4 {[%clk 0:02:23.1]}
11... Qd6 {[%clk 0:02:37.9]} 12. O-O {[%clk 0:02:09.1]} 12... Nxd4 {[%clk
0:02:28.2]} 13. exd4 {[%clk 0:01:58.9]} 13... Qxf4 {[%clk 0:02:24]} 14. Bb5+
{[%clk 0:01:59.1]} 14... Bd7 {[%clk 0:02:21.8]} 15. Bxd7+ {[%clk 0:01:49.6]}
15... Nxd7 {[%clk 0:02:20.7]} 16. Nb3 {[%clk 0:01:48.5]} 16... O-O {[%clk
0:02:16.5]} 17. Rc1 {[%clk 0:01:42]} 17... Rac8 {[%clk 0:02:12.3]} 18. Qd3
{[%clk 0:01:37.5]} 18... Nb6 {[%clk 0:01:49.6]} 19. Nc5 {[%clk 0:01:28.7]} 19...
Na4 {[%clk 0:01:40.4]} 20. b4 {[%clk 0:01:01.6]} 20... b6 {[%clk 0:01:34]} 21.
Nb3 {[%clk 0:01:01.6]} 21... Nb2 {[%clk 0:01:26.1]} 22. Qa6 {[%clk 0:00:46.6]}
22... Qe3+ {[%clk 0:01:14.5]} 23. Kh1 {[%clk 0:00:46.4]} 23... Rxc1 {[%clk
0:01:08.9]} 24. Nxc1 {[%clk 0:00:20.5]} 24... Nc4 {[%clk 0:01:06.5]} 25. Nb3
{[%clk 0:00:19.1]} 25... Qe2 {[%clk 0:00:57.8]} 26. Rg1 {[%clk 0:00:18.4]} 26...
h5 {[%clk 0:00:46.9]} 27. Qxa7 {[%clk 0:00:18.7]} 27... Nb2 {[%clk 0:00:41.6]}
28. Nc1 {[%clk 0:00:10.8]} 28... Qd2 {[%clk 0:00:36]} 29. Qxb6 {[%clk
0:00:09.4]} 29... Nd1 {[%clk 0:00:36.2]} 30. h3 {[%clk 0:00:04.1]} 30... Qxc1
{[%clk 0:00:31.8]} 31. Kh2 {[%clk 0:00:01.8]} 31... Qf4+ {[%clk 0:00:30.5]} 32.
g3 {[%clk 0:00:02.3]} 32... Qd2+ {[%clk 0:00:30.8]} 33. Rg2 {[%clk 0:00:02.8]}
33... Qd3 {[%clk 0:00:26.4]} 34. Qa6 {[%clk 0:00:01.8]} 34... Qxa6 {[%clk
0:00:24.6]} 0-1

[Event "Early-Titled-Tuesday-Blitz-May-07-2024"]
[Site "Chess.com"]
[Date "2024.05.07"]
[Round "9"]
[White "Ginger_GM"]
[Black "InitiatingASC"]
[Result "1-0"]
[WhiteElo "2664"]
[BlackElo "2428"]
[TimeControl "180+1"]
[EndTime "9:52:10 PDT"]
[Termination "Ginger_GM won on time"]

1. Nf3 {[%clk 0:03:00.9]} 1... d5 {[%clk 0:02:53.1]} 2. e3 {[%clk 0:03:00.3]}
2... Bg4 {[%clk 0:02:52.5]} 3. c4 {[%clk 0:02:59]} 3... c6 {[%clk 0:02:51.6]} 4.
Nc3 {[%clk 0:02:54.5]} 4... e6 {[%clk 0:02:48.1]} 5. cxd5 {[%clk 0:02:54.7]}
5... exd5 {[%clk 0:02:48.1]} 6. Qb3 {[%clk 0:02:52.3]} 6... Qb6 {[%clk
0:02:40.4]} 7. Qa4 {[%clk 0:02:29.9]} 7... Qb4 {[%clk 0:02:17.6]} 8. Qc2 {[%clk
0:02:08.7]} 8... Nf6 {[%clk 0:02:12.7]} 9. b3 {[%clk 0:02:04.8]} 9... Be7 {[%clk
0:02:06.2]} 10. Bb2 {[%clk 0:02:04.7]} 10... Nbd7 {[%clk 0:02:02.1]} 11. a3
{[%clk 0:01:58]} 11... Qd6 {[%clk 0:01:53]} 12. Be2 {[%clk 0:01:53.5]} 12... O-O
{[%clk 0:01:46.5]} 13. Nd4 {[%clk 0:01:52.9]} 13... Bxe2 {[%clk 0:01:34.1]} 14.
Ncxe2 {[%clk 0:01:51.5]} 14... g6 {[%clk 0:01:13.8]} 15. O-O {[%clk 0:01:49.8]}
15... Ng4 {[%clk 0:00:59]} 16. f4 {[%clk 0:01:46.8]} 16... Bf6 {[%clk 0:00:57]}
17. h3 {[%clk 0:01:41.3]} 17... Nh6 {[%clk 0:00:56.9]} 18. g4 {[%clk 0:01:40.9]}
18... Bxd4 {[%clk 0:00:46.4]} 19. Bxd4 {[%clk 0:01:40.1]} 19... f5 {[%clk
0:00:46.7]} 20. g5 {[%clk 0:01:37.9]} 20... Nf7 {[%clk 0:00:46]} 21. b4 {[%clk
0:01:35.9]} 21... Rfe8 {[%clk 0:00:41.5]} 22. Bb2 {[%clk 0:01:29.7]} 22... Kf8
{[%clk 0:00:10.8]} 23. Nd4 {[%clk 0:01:08.7]} 23... Ke7 {[%clk 0:00:08.9]} 24.
Nb3 {[%clk 0:01:07.6]} 24... Nf8 {[%clk 0:00:07.5]} 25. Nc5 {[%clk 0:01:03.2]}
25... Qc7 {[%clk 0:00:04.7]} 26. Bf6+ {[%clk 0:00:59.4]} 26... Kd6 {[%clk
0:00:04.3]} 27. Rac1 {[%clk 0:00:49.1]} 27... Ne6 {[%clk 0:00:04.3]} 28. b5
{[%clk 0:00:35]} 28... cxb5 {[%clk 0:00:02.1]} 29. d4 {[%clk 0:00:20.4]} 29...
Nxc5 {[%clk 0:00:01.9]} 30. dxc5+ {[%clk 0:00:20.4]} 30... Kc6 {[%clk
0:00:02.5]} 31. Qd3 {[%clk 0:00:19]} 31... a6 {[%clk 0:00:02.3]} 32. Rfd1 {[%clk
0:00:18.5]} 32... Qd7 {[%clk 0:00:02.9]} 33. a4 {[%clk 0:00:17]} 33... Nd8
{[%clk 0:00:01.6]} 34. Rb1 {[%clk 0:00:16.8]} 1-0

[Event "Early-Titled-Tuesday-Blitz-May-07-2024"]
[Site "Chess.com"]
[Date "2024.05.07"]
[Round "9"]
[White "GMthekingindian"]
[Black "s_stefi"]
[Result "1-0"]
[WhiteElo "2259"]
[BlackElo "1954"]
[TimeControl "180+1"]
[EndTime "9:52:11 PDT"]
[Termination "GMthekingindian won on time"]

1. d4 {[%clk 0:03:00.9]} 1... Nf6 {[%clk 0:02:58.9]} 2. Nf3 {[%clk 0:02:59.4]}
2... g6 {[%clk 0:02:58.3]} 3. g3 {[%clk 0:02:59.9]} 3... Bg7 {[%clk 0:02:58.3]}
4. Bg2 {[%clk 0:03:00.8]} 4... O-O {[%clk 0:02:57.5]} 5. O-O {[%clk 0:03:01.7]}
5... d6 {[%clk 0:02:57.8]} 6. b3 {[%clk 0:03:02.1]} 6... Nbd7 {[%clk 0:02:57]}
7. Bb2 {[%clk 0:03:02.7]} 7... Re8 {[%clk 0:02:56.6]} 8. Re1 {[%clk 0:03:02.2]}
8... e5 {[%clk 0:02:56.5]} 9. dxe5 {[%clk 0:03:02.4]} 9... Ng4 {[%clk
0:02:45.6]} 10. Qc1 {[%clk 0:02:44.9]} 10... Ngxe5 {[%clk 0:02:41.3]} 11. c4
{[%clk 0:02:43.3]} 11... Qe7 {[%clk 0:02:21.6]} 12. Nc3 {[%clk 0:02:39.4]} 12...
c6 {[%clk 0:02:06.1]} 13. Qd2 {[%clk 0:02:39.5]} 13... Nc5 {[%clk 0:01:56.5]}
14. Rad1 {[%clk 0:02:39.7]} 14... Rd8 {[%clk 0:01:55.2]} 15. b4 {[%clk
0:02:36.1]} 15... Ne6 {[%clk 0:01:53.9]} 16. Nxe5 {[%clk 0:02:35.3]} 16... Bxe5
{[%clk 0:01:53.1]} 17. f4 {[%clk 0:02:31.5]} 17... Bg7 {[%clk 0:01:49.7]} 18. e4
{[%clk 0:02:21.4]} 18... Nd4 {[%clk 0:01:33.5]} 19. Nd5 {[%clk 0:02:07.5]} 19...
cxd5 {[%clk 0:01:18.9]} 20. Bxd4 {[%clk 0:02:06.8]} 20... dxc4 {[%clk
0:01:17.9]} 21. Bxg7 {[%clk 0:02:06.4]} 21... Kxg7 {[%clk 0:01:18.8]} 22. Qd4+
{[%clk 0:02:06.6]} 22... Kg8 {[%clk 0:01:15.3]} 23. Qxc4 {[%clk 0:02:07.5]}
23... Be6 {[%clk 0:01:13.9]} 24. Qd4 {[%clk 0:02:06.8]} 24... Rac8 {[%clk
0:01:09.9]} 25. f5 {[%clk 0:02:06.4]} 25... Bxa2 {[%clk 0:01:03.8]} 26. Kh1
{[%clk 0:01:40]} 26... a6 {[%clk 0:00:50.3]} 27. f6 {[%clk 0:01:39.2]} 27... Qe5
{[%clk 0:00:46.2]} 28. Qd2 {[%clk 0:01:35.7]} 28... Bb3 {[%clk 0:00:41.9]} 29.
Rb1 {[%clk 0:01:31.2]} 29... Be6 {[%clk 0:00:32.5]} 30. Rf1 {[%clk 0:01:31.6]}
30... Kh8 {[%clk 0:00:22.7]} 31. Rbd1 {[%clk 0:01:12.2]} 31... Bb3 {[%clk
0:00:20.5]} 32. Rb1 {[%clk 0:01:11.9]} 32... Bc4 {[%clk 0:00:19.6]} 33. Qh6
{[%clk 0:01:04.2]} 33... Rg8 {[%clk 0:00:17.5]} 34. Rf4 {[%clk 0:01:04.7]} 34...
g5 {[%clk 0:00:09.8]} 35. Rf5 {[%clk 0:00:59.9]} 35... Qe6 {[%clk 0:00:07.9]}
36. Re1 {[%clk 0:00:46.9]} 36... Rg6 {[%clk 0:00:07.4]} 37. Qh3 {[%clk
0:00:36.3]} 37... Rxf6 {[%clk 0:00:06.6]} 38. Rxf6 {[%clk 0:00:36.9]} 38... Qxh3
{[%clk 0:00:05.9]} 39. Bxh3 {[%clk 0:00:36.6]} 39... g4 {[%clk 0:00:05.2]} 40.
Bxg4 {[%clk 0:00:36.4]} 40... Rg8 {[%clk 0:00:00.4]} 41. h3 {[%clk 0:00:35.9]}
1-0

[Event "Early-Titled-Tuesday-Blitz-May-07-2024"]
[Site "Chess.com"]
[Date "2024.05.07"]
[Round "9"]
[White "AlexanderKing"]
[Black "CruzWilliam"]
[Result "0-1"]
[WhiteElo "2556"]
[BlackElo "2419"]
[TimeControl "180+1"]
[EndTime "9:52:13 PDT"]
[Termination "CruzWilliam won by checkmate"]

1. g3 {[%clk 0:03:00.9]} 1... Nf6 {[%clk 0:02:57.5]} 2. Bg2 {[%clk 0:03:01]}
2... g6 {[%clk 0:02:56.2]} 3. c4 {[%clk 0:03:01.2]} 3... Bg7 {[%clk 0:02:56.2]}
4. Nc3 {[%clk 0:03:02.1]} 4... O-O {[%clk 0:02:55.8]} 5. e4 {[%clk 0:03:02.7]}
5... d6 {[%clk 0:02:54.4]} 6. Nge2 {[%clk 0:03:00.3]} 6... c5 {[%clk 0:02:54.5]}
7. O-O {[%clk 0:02:59.5]} 7... Nc6 {[%clk 0:02:54.9]} 8. d3 {[%clk 0:02:59.8]}
8... Ne8 {[%clk 0:02:54.9]} 9. Be3 {[%clk 0:02:58]} 9... Nd4 {[%clk 0:02:54.6]}
10. Rb1 {[%clk 0:02:53.5]} 10... a5 {[%clk 0:02:52.7]} 11. a3 {[%clk 0:02:53.4]}
11... Nc7 {[%clk 0:02:44.5]} 12. b4 {[%clk 0:02:53.3]} 12... axb4 {[%clk
0:02:43.9]} 13. axb4 {[%clk 0:02:54.2]} 13... Nce6 {[%clk 0:02:40.7]} 14. bxc5
{[%clk 0:02:48.8]} 14... dxc5 {[%clk 0:02:38.8]} 15. Nd5 {[%clk 0:02:44.5]}
15... Nxe2+ {[%clk 0:02:34.2]} 16. Qxe2 {[%clk 0:02:45.4]} 16... Nd4 {[%clk
0:02:33.2]} 17. Bxd4 {[%clk 0:02:36]} 17... Bxd4 {[%clk 0:02:32]} 18. e5 {[%clk
0:02:12.5]} 18... Be6 {[%clk 0:02:16]} 19. Rxb7 {[%clk 0:02:06.1]} 19... Bxd5
{[%clk 0:02:13.5]} 20. Bxd5 {[%clk 0:02:07]} 20... e6 {[%clk 0:02:10.2]} 21. Bg2
{[%clk 0:01:53.1]} 21... Ra3 {[%clk 0:02:09.6]} 22. h4 {[%clk 0:01:46.4]} 22...
h5 {[%clk 0:02:06.2]} 23. Kh2 {[%clk 0:01:38]} 23... Qa5 {[%clk 0:02:02]} 24.
Be4 {[%clk 0:01:27.9]} 24... Kg7 {[%clk 0:01:42.2]} 25. Kg2 {[%clk 0:00:42.4]}
25... Ra2 {[%clk 0:01:39.3]} 26. Qf3 {[%clk 0:00:37.6]} 26... Bxe5 {[%clk
0:01:36.4]} 27. g4 {[%clk 0:00:20.5]} 27... Rb2 {[%clk 0:00:55.6]} 28. Rxb2
{[%clk 0:00:08.4]} 28... Bxb2 {[%clk 0:00:55.4]} 29. gxh5 {[%clk 0:00:09.3]}
29... gxh5 {[%clk 0:00:55]} 30. Qxh5 {[%clk 0:00:05.5]} 30... Rh8 {[%clk
0:00:54.3]} 31. Qg5+ {[%clk 0:00:05.6]} 31... Kf8 {[%clk 0:00:53.9]} 32. Rb1
{[%clk 0:00:02.3]} 32... Rg8 {[%clk 0:00:53.5]} 33. Rxb2 {[%clk 0:00:01.7]}
33... Rxg5+ {[%clk 0:00:53]} 34. hxg5 {[%clk 0:00:02.6]} 34... Qc3 {[%clk
0:00:49.9]} 35. Rb8+ {[%clk 0:00:01.7]} 35... Kg7 {[%clk 0:00:50.5]} 36. g6
{[%clk 0:00:02.4]} 36... f5 {[%clk 0:00:48.1]} 37. Bf3 {[%clk 0:00:01.1]} 37...
Kxg6 {[%clk 0:00:47.9]} 38. Rb6 {[%clk 0:00:00.7]} 38... Kf7 {[%clk 0:00:46.6]}
39. Rc6 {[%clk 0:00:00.5]} 39... Qd4 {[%clk 0:00:45.5]} 40. Rc7+ {[%clk
0:00:01.4]} 40... Kf6 {[%clk 0:00:45.3]} 41. Kf1 {[%clk 0:00:01.2]} 41... Qxd3+
{[%clk 0:00:45]} 42. Be2 {[%clk 0:00:01.9]} 42... Qd4 {[%clk 0:00:43.7]} 43. Rc6
{[%clk 0:00:01.4]} 43... Ke5 {[%clk 0:00:41.1]} 44. Rc8 {[%clk 0:00:01.1]} 44...
Qe4 {[%clk 0:00:39.7]} 45. Rc6 {[%clk 0:00:00.6]} 45... Qh1# {[%clk 0:00:39.1]}
0-1

[Event "Early-Titled-Tuesday-Blitz-May-07-2024"]
[Site "Chess.com"]
[Date "2024.05.07"]
[Round "9"]
[White "Zhigalko_Sergei"]
[Black "DanielNaroditsky"]
[Result "0-1"]
[WhiteElo "2875"]
[BlackElo "3065"]
[TimeControl "180+1"]
[EndTime "9:52:15 PDT"]
[Termination "DanielNaroditsky won on time"]

1. e4 {[%clk 0:03:00.9]} 1... c5 {[%clk 0:02:53.5]} 2. Nf3 {[%clk 0:03:00.7]}
2... d6 {[%clk 0:02:53.4]} 3. d4 {[%clk 0:03:01.1]} 3... cxd4 {[%clk 0:02:54.3]}
4. Qxd4 {[%clk 0:03:01.7]} 4... Nf6 {[%clk 0:02:55.1]} 5. Nc3 {[%clk 0:03:01.9]}
5... Nc6 {[%clk 0:02:55.2]} 6. Bb5 {[%clk 0:03:02.2]} 6... Bd7 {[%clk
0:02:54.3]} 7. Bxc6 {[%clk 0:03:02.5]} 7... Bxc6 {[%clk 0:02:55.2]} 8. Bg5
{[%clk 0:03:02.9]} 8... e6 {[%clk 0:02:55.9]} 9. O-O-O {[%clk 0:03:03.2]} 9...
Be7 {[%clk 0:02:56.4]} 10. Rhe1 {[%clk 0:03:03.7]} 10... Qa5 {[%clk 0:02:53.8]}
11. Kb1 {[%clk 0:03:03.7]} 11... Rc8 {[%clk 0:02:51.2]} 12. Qd2 {[%clk 0:02:38]}
12... b5 {[%clk 0:02:31.9]} 13. e5 {[%clk 0:01:36.4]} 13... b4 {[%clk
0:02:19.3]} 14. exf6 {[%clk 0:01:16.9]} 14... bxc3 {[%clk 0:02:18.7]} 15. Qf4
{[%clk 0:01:16.5]} 15... Rb8 {[%clk 0:01:56.7]} 16. b3 {[%clk 0:01:04.4]} 16...
Qa3 {[%clk 0:01:51.8]} 17. Qc1 {[%clk 0:01:03]} 17... Qxc1+ {[%clk 0:01:52.1]}
18. Bxc1 {[%clk 0:00:37]} 18... gxf6 {[%clk 0:01:52.5]} 19. Re3 {[%clk
0:00:31.8]} 19... e5 {[%clk 0:01:33.2]} 20. Rxc3 {[%clk 0:00:31.5]} 20... Kd7
{[%clk 0:01:34]} 21. Re3 {[%clk 0:00:20.2]} 21... Rhg8 {[%clk 0:01:26.8]} 22. g3
{[%clk 0:00:20.7]} 22... a5 {[%clk 0:01:23.2]} 23. Nh4 {[%clk 0:00:19.1]} 23...
Ke6 {[%clk 0:01:21.8]} 24. f4 {[%clk 0:00:18.2]} 24... a4 {[%clk 0:01:18.1]} 25.
Bb2 {[%clk 0:00:16.3]} 25... Rgc8 {[%clk 0:01:12.7]} 26. Rf1 {[%clk 0:00:14.1]}
26... Bb5 {[%clk 0:01:02.4]} 27. Rf2 {[%clk 0:00:14.1]} 27... axb3 {[%clk
0:00:57.7]} 28. axb3 {[%clk 0:00:15]} 28... Bc6 {[%clk 0:00:47.1]} 29. g4 {[%clk
0:00:15.2]} 29... Rg8 {[%clk 0:00:43.7]} 30. h3 {[%clk 0:00:03.7]} 30... h5
{[%clk 0:00:44.1]} 31. gxh5 {[%clk 0:00:03.3]} 31... Rg1+ {[%clk 0:00:44.1]} 32.
Bc1 {[%clk 0:00:03.8]} 32... f5 {[%clk 0:00:38.6]} 33. Nf3 {[%clk 0:00:03.8]}
33... Bxf3 {[%clk 0:00:38.8]} 34. Rfxf3 {[%clk 0:00:03.6]} 34... e4 {[%clk
0:00:38]} 35. Rg3 {[%clk 0:00:04]} 35... Rh1 {[%clk 0:00:37.1]} 36. Rc3 {[%clk
0:00:03]} 36... d5 {[%clk 0:00:36.8]} 37. Rc6+ {[%clk 0:00:03.2]} 37... Kd7
{[%clk 0:00:37.3]} 38. Ra6 {[%clk 0:00:02.9]} 38... Bc5 {[%clk 0:00:30.7]} 39.
h6 {[%clk 0:00:02.5]} 39... e3 {[%clk 0:00:29.2]} 40. h7 {[%clk 0:00:01.1]}
40... e2 {[%clk 0:00:29.7]} 41. Re3 {[%clk 0:00:00.9]} 41... Bxe3 {[%clk
0:00:29.6]} 0-1